bitfinex/quotes_SOLUSD_20260102
["timestamp","ask_amount","ask_price","bid_price","bid_amount"]
[1767334083911,2.0506207,127.34,127.31,0.714872]
[1767334085731,10.62015555,127.35,127.31,0.714872]
[1767334086025,2.76776641,127.35,127.32,0.714872]
[1767334087329,2.0506207,127.35,127.32,7.85422264]
[1767334087524,15.05714571,127.37,127.34,0.714872]
[1767334087728,17.10776641,127.37,127.34,0.714872]
[1767334088328,2.76776641,127.36,127.32,0.714872]
[1767334088635,2.0506207,127.35,127.33,0.714872]
[1767334088933,2.76776641,127.34,127.31,0.714872]
[1767334089119,0.71714571,127.34,127.31,0.714872]
[1767334094039,2.76776641,127.34,127.31,0.714872]
[1767334098536,0.71714571,127.34,127.32,0.714872]
[1767334101841,0.71714571,127.33,127.3,7.85522418]
[1767334102026,0.71714571,127.32,127.3,7.85522418]
[1767334102221,2.76776641,127.34,127.3,10.62071688]
[1767334102719,2.76776641,127.34,127.31,0.714872]
[1767334103835,2.76776641,127.34,127.31,7.85477729]
[1767334104046,0.71714571,127.34,127.32,0.65622106]
[1767334110146,3.8990498,127.35,127.32,0.65622106]
[1767334121057,0.69702139,127.35,127.32,0.65622106]
[1767334121234,3.8990498,127.35,127.32,0.65622106]
[1767334126655,17.54202841,127.36,127.33,0.6773599]
[1767334126863,18.2390498,127.36,127.33,0.6773599]
[1767334127569,14.34,127.36,127.33,0.6773599]
[1767334127759,3.8990498,127.37,127.33,0.6773599]
[1767334128146,3.20202841,127.37,127.33,0.6773599]
[1767334128361,3.8990498,127.36,127.33,0.6773599]
[1767334131768,3.8990498,127.37,127.33,0.6773599]
[1767334132063,3.8990498,127.37,127.34,0.6773599]
[1767334133066,3.20202841,127.36,127.34,0.6773599]
[1767334133766,3.92367787,127.36,127.34,0.6773599]
[1767334135669,0.72164946,127.36,127.34,0.6773599]
[1767334135964,0.72164946,127.4,127.36,0.69344996]
[1767334136268,3.92367787,127.39,127.36,0.69344996]
[1767334137067,3.20202841,127.38,127.36,0.69344996]
[1767334138871,14.34,127.4,127.36,0.69344996]
[1767334139073,18.26367787,127.4,127.37,0.69344996]
[1767334142973,3.20202841,127.38,127.32,33.97483362]
[1767334143163,3.20202841,127.36,127.33,0.69344996]
[1767334143369,3.92367787,127.36,127.33,0.69344996]
[1767334143557,0.72164946,127.36,127.33,0.69344996]
[1767334143862,3.92367787,127.36,127.33,0.69344996]
[1767334145474,3.20202841,127.36,127.33,0.69344996]
[1767334147758,0.72164946,127.37,127.33,0.69344996]
[1767334148063,3.20202841,127.36,127.33,0.69344996]
[1767334154869,3.20202841,127.35,127.33,0.69344996]
[1767334155064,3.92367787,127.35,127.33,0.69344996]
[1767334155263,3.92367787,127.34,127.31,8.54805177]
[1767334155489,3.20202841,127.34,127.32,0.69344996]
[1767334155681,3.92367787,127.35,127.32,0.69344996]
[1767334156079,3.20202841,127.34,127.32,0.69344996]
[1767334158460,0.72164946,127.35,127.32,0.69344996]
[1767334158761,3.20202841,127.34,127.32,0.69344996]
[1767334160893,3.92367787,127.36,127.33,0.69344996]
[1767334161069,14.34,127.37,127.34,3.89547837]
[1767334161276,14.34,127.37,127.35,0.69344996]
[1767334161475,0.72164946,127.38,127.35,0.69344996]
[1767334161879,3.92367787,127.38,127.35,0.69344996]
[1767334162782,0.72164946,127.38,127.35,0.69344996]
[1767334163100,0.72164946,127.38,127.35,8.54574326]
[1767334165691,3.20202841,127.39,127.35,7.8522933]
[1767334165884,3.87139565,127.39,127.36,0.67988065]
[1767334166698,2.71730121,127.39,127.36,0.67988065]
[1767334171107,0.66936724,127.39,127.36,0.67988065]
[1767334171393,2.71730121,127.39,127.36,0.67988065]
[1767334174203,0.66936724,127.39,127.36,0.67988065]
[1767334174404,2.71730121,127.39,127.36,0.67988065]
[1767334177400,2.71730121,127.39,127.36,7.8517276]
[1767334177591,17.05730121,127.4,127.37,0.67988065]
[1767334177985,0.66936724,127.39,127.37,0.67988065]
[1767334178290,0.66936724,127.39,127.36,8.53160825]
[1767334180798,0.66936724,127.39,127.36,7.8517276]
[1767334180997,0.66936724,127.39,127.37,0.67988065]
[1767334181905,2.71730121,127.41,127.38,0.67988065]
[1767334186815,0.66936724,127.41,127.38,0.67988065]
[1767334187016,2.71730121,127.41,127.38,0.67988065]
[1767334188512,2.04793397,127.4,127.38,0.67988065]
[1767334188715,2.71730121,127.41,127.38,0.67988065]
[1767334194328,0.66936724,127.41,127.38,0.67988065]
[1767334195126,2.71730121,127.41,127.38,0.67988065]
[1767334195492,0.68723831,127.39,127.36,0.68011468]
[1767334195696,2.73517228,127.39,127.36,0.68011468]
[1767334198004,0.68723831,127.39,127.36,0.68011468]
[1767334201131,0.68723831,127.39,127.37,0.68011468]
[1767334201330,0.68723831,127.4,127.37,0.68011468]
[1767334201620,14.34,127.41,127.39,0.68011468]
[1767334202418,0.68723831,127.42,127.39,0.68011468]
[1767334202630,0.68723831,127.43,127.4,0.68011468]
[1767334206106,0.68723831,127.43,127.4,0.64961712]
[1767334210326,0.68723831,127.43,127.4,2.69755109]
[1767334211728,0.68723831,127.4,127.36,0.68011468]
[1767334212023,2.73517228,127.38,127.35,0.68011468]
[1767334212526,2.73517228,127.38,127.36,0.68011468]
[1767334212712,0.68723831,127.38,127.36,0.68011468]
[1767334215421,2.04793397,127.39,127.36,0.68011468]
[1767334215623,0.68723831,127.4,127.38,0.68011468]
[1767334217625,17.07517228,127.41,127.38,0.68011468]
[1767334217812,15.02723831,127.41,127.38,0.68011468]
[1767334221326,0.68723831,127.41,127.38,0.68011468]
[1767334221924,2.73517228,127.41,127.38,0.68011468]
[1767334222913,0.68723831,127.4,127.38,0.68011468]
[1767334223114,2.73517228,127.41,127.38,0.68011468]
[1767334223318,15.02723831,127.43,127.39,0.68011468]
[1767334223517,0.68723831,127.43,127.39,0.70949543]
[1767334223723,0.68723831,127.43,127.4,0.70949543]
[1767334224535,9.89484191,127.44,127.41,0.70949543]
[1767334224725,10.5883608,127.44,127.41,0.70949543]
[1767334225026,0.69351889,127.43,127.4,2.7484935]
[1767334226230,0.69351889,127.43,127.4,0.70055953]
[1767334228834,0.69351889,127.4,127.37,7.85114234]
[1767334229138,0.69351889,127.4,127.37,8.55170187]
[1767334230435,3.8910417,127.4,127.37,8.55170187]
[1767334231338,3.8910417,127.4,127.37,7.85114234]
[1767334231633,3.8910417,127.4,127.37,8.55170187]
[1767334234835,0.69351889,127.4,127.37,8.55170187]
[1767334236638,0.69351889,127.4,127.37,7.85114234]
[1767334236639,0.69351889,127.39,127.37,7.85114234]
[1767334237142,0.69351889,127.39,127.37,8.55170187]
[1767334237637,3.19752281,127.4,127.37,8.55170187]
[1767334238137,0.69351889,127.39,127.37,8.55170187]
[1767334239943,3.19752281,127.4,127.37,8.55170187]
[1767334240130,3.8910417,127.4,127.37,8.55170187]
[1767334248131,3.19752281,127.4,127.37,8.55170187]
[1767334248326,0.69351889,127.39,127.37,8.55170187]
[1767334252547,0.69351889,127.39,127.37,7.85114234]
[1767334252928,3.8910417,127.39,127.36,8.55203773]
[1767334253328,3.8910417,127.38,127.34,0.70055953]
[1767334253542,0.69351889,127.37,127.34,8.55308826]
[1767334253750,0.69351889,127.37,127.35,0.68898213]
[1767334253934,0.66351889,127.37,127.35,0.68898213]
[1767334258653,3.90653985,127.38,127.35,0.68898213]
[1767334260456,3.90653985,127.38,127.35,8.54132109]
[1767334260958,3.90653985,127.4,127.36,0.68898213]
[1767334261454,14.34,127.41,127.37,0.68898213]
[1767334261659,18.24653985,127.41,127.37,0.68898213]
[1767334262156,3.19752281,127.4,127.37,0.68898213]
[1767334263359,3.19752281,127.4,127.37,8.53995361]
[1767334265056,3.19752281,127.4,127.38,0.68898213]
[1767334265241,18.24653985,127.41,127.38,0.68898213]
[1767334268251,3.19752281,127.4,127.38,0.68898213]
[1767334271267,18.24653985,127.41,127.38,0.68898213]
[1767334272566,15.04901704,127.41,127.38,0.68898213]
[1767334272773,14.34,127.41,127.39,0.68898213]
[1767334273663,18.24653985,127.41,127.39,0.68898213]
[1767334273860,3.90653985,127.41,127.39,0.68898213]
[1767334276670,3.90653985,127.41,127.38,0.68898213]
[1767334277755,3.19752281,127.41,127.38,0.68898213]
[1767334279073,0.70901704,127.41,127.38,0.68898213]
[1767334279277,3.90653985,127.41,127.38,0.68898213]
[1767334281277,0.70901704,127.41,127.38,0.68898213]
[1767334281466,3.90653985,127.41,127.38,0.68898213]
[1767334284080,3.90653985,127.41,127.38,8.53937899]
[1767334285184,3.85043537,127.42,127.39,8.53376632]
[1767334287172,3.85043537,127.42,127.39,0.68395796]
[1767334287379,0.65291256,127.4,127.38,7.85028517]
[1767334287766,3.85043537,127.41,127.38,8.53424313]
[1767334288484,2.70017551,127.41,127.38,8.53424313]
[1767334290386,0.65291256,127.43,127.39,0.68395796]
[1767334290769,0.65291256,127.43,127.4,0.68395796]
[1767334291485,0.1,127.47,127.43,0.68395796]
[1767334291686,0.1,127.47,127.44,2.73122091]
[1767334291868,0.1,127.47,127.44,0.68395796]
[1767334293290,0.1,127.48,127.45,2.73122091]
[1767334293586,0.1,127.48,127.45,0.68395796]
[1767334294588,0.1,127.48,127.45,8.52995719]
[1767334296187,0.1,127.48,127.46,8.52951034]
[1767334297294,0.1,127.48,127.46,0.68395796]
[1767334299189,0.1,127.48,127.44,7.84654649]
[1767334299375,2.33100387,127.48,127.45,0.68395796]
[1767334299993,0.28374092,127.48,127.45,0.68395796]
[1767334300198,2.33100387,127.48,127.45,0.68395796]
[1767334301597,2.04726295,127.47,127.45,0.68395796]
[1767334301798,2.04726295,127.46,127.43,8.53100117]
[1767334302589,2.23100387,127.47,127.44,0.68395796]
[1767334303801,2.04726295,127.46,127.44,0.68395796]
[1767334306704,2.04726295,127.46,127.44,8.53078604]
[1767334308602,2.23100387,127.47,127.44,8.53078604]
[1767334311006,0.18374092,127.46,127.43,8.53140361]
[1767334311307,2.23100387,127.47,127.44,0.68395796]
[1767334315104,2.23100387,127.47,127.44,8.53077271]
[1767334315309,2.04726295,127.46,127.44,8.53077271]
[1767334317012,2.14726295,127.48,127.44,0.66112312]
[1767334317308,2.04726295,127.47,127.44,0.66112312]
[1767334318004,2.04726295,127.47,127.44,8.50791387]
[1767334318214,2.23100387,127.47,127.44,8.50791387]
[1767334321217,2.23100387,127.47,127.45,0.66112312]
[1767334324812,2.23100387,127.47,127.44,8.50791387]
[1767334325227,2.23100387,127.47,127.44,7.84679075]
[1767334325411,2.04726295,127.46,127.43,7.84732076]
[1767334325618,2.04726295,127.44,127.42,0.66112312]
[1767334326114,2.04726295,127.43,127.42,0.66112312]
[1767334326408,2.01726295,127.43,127.42,0.66112312]
[1767334326605,2.01726295,127.43,127.41,0.66112312]
[1767334326809,0.18374092,127.44,127.41,0.66112312]
[1767334326993,2.04726295,127.43,127.41,0.66112312]
[1767334343031,0.18374092,127.44,127.41,0.66112312]
[1767334343204,2.04726295,127.43,127.41,0.66112312]
[1767334343709,2.04726295,127.44,127.41,0.66112312]
[1767334345125,2.04726295,127.45,127.42,0.66305295]
[1767334347231,2.23100387,127.45,127.42,0.66305295]
[1767334348437,2.04726295,127.45,127.42,0.66305295]
[1767334348637,3.38071176,127.45,127.42,0.66305295]
[1767334349012,0.18374092,127.45,127.42,0.66305295]
[1767334349213,3.38071176,127.45,127.42,0.66305295]
[1767334352536,3.19697084,127.44,127.42,0.66305295]
[1767334353939,3.38071176,127.45,127.42,0.66305295]
[1767334356741,0.18374092,127.45,127.42,0.66305295]
[1767334357037,3.38071176,127.45,127.42,0.66305295]
[1767334357433,3.19697084,127.45,127.42,0.66305295]
[1767334358741,3.38071176,127.45,127.42,0.66305295]
[1767334361746,11.22700611,127.45,127.42,0.66305295]
[1767334362248,3.19697084,127.44,127.42,0.66305295]
[1767334367653,3.38071176,127.45,127.42,0.66305295]
[1767334368753,3.19697084,127.45,127.42,0.66305295]
[1767334369647,3.38071176,127.45,127.42,0.66305295]
[1767334371858,3.35071176,127.45,127.42,0.66305295]
[1767334374360,0.18374092,127.45,127.42,0.66305295]
[1767334374540,3.38071176,127.45,127.42,0.66305295]
[1767334376061,0.18374092,127.45,127.42,0.66305295]
[1767334376354,3.19697084,127.45,127.42,0.66305295]
[1767334377255,3.38071176,127.45,127.42,0.66305295]
[1767334377435,3.19697084,127.45,127.42,0.66305295]
[1767334384362,3.38071176,127.45,127.42,0.66305295]
[1767334390161,0.18374092,127.45,127.42,0.66305295]
[1767334390462,3.38071176,127.45,127.42,0.66305295]
[1767334398179,27.55528709,127.48,127.42,0.66305295]
[1767334398471,3.19697084,127.45,127.42,0.66305295]
[1767334399661,3.19697084,127.46,127.43,0.65486377]
[1767334399970,3.19697084,127.45,127.43,0.65486377]
[1767334405473,0.18374092,127.46,127.43,0.65486377]
[1767334405770,3.19697084,127.45,127.43,0.65486377]
[1767334406172,0.18374092,127.46,127.43,0.65486377]
[1767334406470,3.19697084,127.45,127.43,0.65486377]
[1767334407976,3.38071176,127.46,127.43,0.65486377]
[1767334410374,3.19697084,127.45,127.43,0.65486377]
[1767334410577,2.04615274,127.45,127.43,0.65486377]
[1767334413681,0.18374092,127.46,127.43,0.65486377]
[1767334413981,2.04615274,127.45,127.43,0.65486377]
[1767334415479,10.0764041,127.45,127.41,0.66210474]
[1767334415683,2.22989366,127.44,127.41,0.66210474]
[1767334419078,2.04615274,127.43,127.41,0.66210474]
[1767334423191,8.03069942,127.44,127.41,0.66210474]
[1767334423369,2.04615274,127.43,127.41,0.66210474]
[1767334424287,9.89361771,127.43,127.41,0.66210474]
[1767334424496,2.04615274,127.42,127.41,0.66210474]
[1767334426279,2.04615274,127.42,127.38,9.89640938]
[1767334426594,2.04615274,127.42,127.39,0.66210474]
[1767334428585,2.04615274,127.42,127.4,0.66210474]
[1767334431200,2.04615274,127.43,127.41,0.66210474]
[1767334438709,0.18374092,127.44,127.41,0.66210474]
[1767334438907,2.04615274,127.43,127.41,0.66210474]
[1767334441192,2.22989366,127.42,127.39,8.55220847]
[1767334441397,2.04615274,127.42,127.39,7.84960907]
[1767334441692,2.04615274,127.42,127.4,0.7025994]
[1767334447612,2.22989366,127.43,127.4,0.7025994]
[1767334448309,2.04615274,127.42,127.38,7.85024392]
[1767334448510,2.04615274,127.41,127.39,0.7025994]
[1767334452402,2.04615274,127.4,127.38,0.7025994]
[1767334452601,2.04615274,127.39,127.38,0.7025994]
[1767334452801,2.01615274,127.39,127.38,0.7025994]
[1767334454519,2.01615274,127.39,127.36,7.85144569]
[1767334454722,2.01615274,127.39,127.37,0.7025994]
[1767334455610,2.04615274,127.4,127.37,0.7025994]
[1767334469737,2.04615274,127.39,127.37,0.7025994]
[1767334469936,2.04615274,127.38,127.35,8.53122882]
[1767334470236,2.04615274,127.39,127.37,0.67915039]
[1767334471738,0.18374092,127.4,127.37,0.67915039]
[1767334471939,2.04615274,127.39,127.37,0.67915039]
[1767334472542,3.19989752,127.39,127.37,0.67915039]
[1767334484977,3.19989752,127.38,127.35,7.85207313]
[1767334485150,3.19989752,127.38,127.36,0.67915039]
[1767334492369,3.19989752,127.37,127.35,0.67915039]
[1767334492870,7.84975245,127.4,127.35,0.67915039]
[1767334493078,3.19989752,127.37,127.35,0.67915039]
[1767334493974,0.18374092,127.39,127.35,0.67915039]
[1767334494163,3.19989752,127.37,127.35,0.67915039]
[1767334499289,3.19989752,127.38,127.35,0.67915039]
[1767334499489,3.19989752,127.38,127.36,0.69745041]
[1767334499864,0.18374092,127.39,127.36,0.69745041]
[1767334500064,8.03349337,127.4,127.36,0.69745041]
[1767334500288,3.19989752,127.39,127.36,0.69745041]
[1767334500781,3.38363844,127.39,127.36,0.69745041]
[1767334500959,3.19989752,127.4,127.37,0.69745041]
[1767334501591,8.03258826,127.41,127.37,0.69745041]
[1767334501787,3.19989752,127.4,127.37,0.69745041]
[1767334501960,3.38363844,127.4,127.37,0.69745041]
[1767334503193,14.34,127.42,127.37,7.85099886]
[1767334503368,3.38363844,127.42,127.38,0.69745041]
[1767334503873,3.19989752,127.41,127.38,0.69745041]
[1767334505883,3.19989752,127.39,127.38,0.69745041]
[1767334506689,3.19989752,127.4,127.38,0.69745041]
[1767334510311,0.18374092,127.38,127.36,0.69745041]
[1767334510512,3.38363844,127.38,127.36,0.69745041]
[1767334512704,0.18374092,127.38,127.36,0.69745041]
[1767334513091,3.38363844,127.38,127.36,0.69745041]
[1767334513885,3.38363844,127.38,127.34,11.75006127]
[1767334514091,0.18374092,127.38,127.35,0.69745041]
[1767334514271,3.38363844,127.38,127.35,0.69745041]
[1767334514889,3.19989752,127.38,127.35,0.69745041]
[1767334516898,11.23364014,127.39,127.35,0.69745041]
[1767334517399,3.19989752,127.39,127.35,0.69745041]
[1767334517570,3.19989752,127.39,127.36,0.69745041]
[1767334518608,8.03311069,127.4,127.36,0.69745041]
[1767334518898,11.23300821,127.4,127.36,0.69745041]
[1767334524121,3.19989752,127.39,127.36,0.69745041]
[1767334524508,0.18374092,127.41,127.37,0.71126506]
[1767334524810,3.38363844,127.42,127.38,0.71126506]
[1767334524975,0.18374092,127.41,127.38,0.71126506]
[1767334525396,3.38363844,127.41,127.38,0.71126506]
[1767334534517,2.23117174,127.41,127.38,0.71126506]
[1767334534717,2.04743082,127.4,127.38,0.71126506]
[1767334538421,2.23117174,127.4,127.37,0.69321929]
[1767334539019,2.04743082,127.4,127.37,0.69321929]
[1767334540829,8.0324334,127.41,127.37,0.69321929]
[1767334541125,10.07986422,127.41,127.37,0.69321929]
[1767334543521,2.23117174,127.41,127.37,7.85106236]
[1767334543723,2.23117174,127.41,127.38,0.69321929]
[1767334545110,0.18374092,127.41,127.38,0.69321929]
[1767334545312,2.23117174,127.41,127.38,0.69321929]
[1767334549726,0.18374092,127.41,127.38,0.69321929]
[1767334549935,2.23117174,127.41,127.38,0.69321929]
[1767334551040,0.18374092,127.41,127.38,0.69321929]
[1767334551241,2.23117174,127.41,127.38,0.69321929]
[1767334553713,0.18374092,127.41,127.38,0.69321929]
[1767334553937,2.23117174,127.41,127.38,0.69321929]
[1767334554337,0.18374092,127.41,127.38,0.69321929]
[1767334554843,2.23117174,127.41,127.38,0.69321929]
[1767334558740,2.04743082,127.41,127.38,0.69321929]
[1767334558941,10.07947136,127.42,127.38,2.04743082]
[1767334559120,10.07947136,127.42,127.39,0.71297045]
[1767334559121,8.03204054,127.42,127.39,0.71297045]
[1767334559537,0.18374092,127.41,127.39,0.71297045]
[1767334560035,0.18374092,127.41,127.38,2.04743082]
[1767334560235,0.18374092,127.41,127.38,2.76040127]
[1767334563138,0.18374092,127.41,127.39,0.71297045]
[1767334563942,10.07947136,127.42,127.39,0.71297045]
[1767334565046,8.03204054,127.42,127.39,0.71297045]
[1767334568146,10.07947136,127.42,127.39,0.71297045]
[1767334573651,2.04743082,127.41,127.39,0.71297045]
[1767334574254,2.04743082,127.4,127.36,2.04743082]
[1767334574551,2.23117174,127.4,127.37,0.71297045]
[1767334574852,2.04743082,127.4,127.37,0.71297045]
[1767334575351,1.32243082,127.4,127.37,0.71297045]
[1767334576742,7.8490299,127.41,127.37,0.71297045]
[1767334576943,2.04743082,127.4,127.37,0.71297045]
[1767334578852,8.52630383,127.41,127.37,0.71297045]
[1767334579052,2.04743082,127.4,127.37,0.71297045]
[1767334586855,2.7331767,127.4,127.37,0.71297045]
[1767334587060,0.68574588,127.39,127.37,0.71297045]
[1767334587254,2.7331767,127.4,127.37,0.71297045]
[1767334591064,0.68574588,127.4,127.37,0.71297045]
[1767334591261,2.7331767,127.4,127.37,0.71297045]
[1767334591866,0.68574588,127.4,127.37,0.71297045]
[1767334592061,2.7331767,127.4,127.37,0.71297045]
[1767334594470,3.88515799,127.4,127.37,0.71297045]
[1767334594761,3.88515799,127.39,127.35,11.77074176]
[1767334594948,3.88515799,127.39,127.36,0.71914977]
[1767334603463,3.19941211,127.38,127.36,0.71914977]
[1767334603770,3.88515799,127.39,127.36,0.71914977]
[1767334603955,0.68574588,127.39,127.36,0.71914977]
[1767334604273,0.68574588,127.39,127.36,3.91856188]
[1767334604574,0.68574588,127.39,127.37,0.71914977]
[1767334607678,3.19941211,127.4,127.37,0.71914977]
[1767334607851,11.73351,127.42,127.38,0.71914977]
[1767334608057,11.73351,127.42,127.38,3.19941211]
[1767334608254,11.73351,127.42,127.39,0.71914977]
[1767334609282,3.88515799,127.42,127.39,0.71914977]
[1767334613776,0.68574588,127.42,127.4,0.71256449]
[1767334615976,17.53941211,127.43,127.4,0.71256449]
[1767334616178,18.21455658,127.43,127.4,0.71256449]
[1767334616877,17.53941211,127.43,127.4,0.71256449]
[1767334617076,0.67514447,127.42,127.4,0.71256449]
[1767334620578,18.21455658,127.43,127.4,0.71256449]
[1767334620877,15.01514447,127.43,127.4,0.71256449]
[1767334621072,18.21455658,127.43,127.4,0.71256449]
[1767334623175,26.06204953,127.43,127.4,0.71256449]
[1767334623383,18.21455658,127.43,127.4,0.71256449]
[1767334624076,15.01514447,127.43,127.4,3.19941211]
[1767334624276,14.34,127.43,127.41,0.71256449]
[1767334624476,11.7216054,127.44,127.41,0.68246899]
[1767334625180,0.67514447,127.44,127.41,3.19941211]
[1767334625686,3.87455658,127.44,127.4,3.19941211]
[1767334626385,3.87455658,127.44,127.41,0.71256449]
[1767334631592,11.72139019,127.44,127.41,0.71256449]
[1767334633485,11.72139019,127.44,127.41,3.9119766]
[1767334634573,8.52197808,127.44,127.41,3.9119766]
[1767334634767,11.72139019,127.44,127.41,3.9119766]
[1767334635088,11.72139019,127.44,127.41,0.71256449]
[1767334635291,11.72139019,127.44,127.41,3.9119766]
[1767334637493,11.72139019,127.44,127.41,0.71256449]
[1767334637692,11.72139019,127.44,127.41,3.9119766]
[1767334641292,8.52197808,127.44,127.41,3.9119766]
[1767334641495,11.72139019,127.44,127.41,3.9119766]
[1767334643097,8.52197808,127.44,127.41,3.9119766]
[1767334643292,11.72139019,127.44,127.41,3.9119766]
[1767334648019,11.72139019,127.44,127.41,0.71256449]
[1767334656522,10.56837765,127.44,127.41,0.71256449]
[1767334661326,8.52197808,127.44,127.41,0.71256449]
[1767334661506,10.56837765,127.44,127.41,0.71256449]
[1767334664027,2.04639957,127.43,127.41,0.71256449]
[1767334664731,8.52197808,127.44,127.41,0.71256449]
[1767334664918,2.04639957,127.43,127.41,0.71256449]
[1767334666308,2.76864875,127.43,127.41,0.71256449]
[1767334668130,8.56908279,127.44,127.41,0.71256449]
[1767334668312,10.61548236,127.44,127.41,0.71326551]
[1767334668512,8.56908279,127.44,127.41,0.71326551]
[1767334669032,10.61548236,127.44,127.41,0.71326551]
[1767334669432,8.56908279,127.44,127.41,0.71326551]
[1767334669612,10.61548236,127.44,127.41,0.71326551]
[1767334670634,8.56908279,127.44,127.41,0.71326551]
[1767334670835,10.61548236,127.44,127.41,0.71326551]
[1767334671537,2.04639957,127.43,127.41,0.71326551]
[1767334672941,8.56908279,127.44,127.41,0.71326551]
[1767334673236,10.61548236,127.44,127.41,0.71326551]
[1767334681941,2.04639957,127.43,127.41,0.71326551]
[1767334682431,10.61548236,127.44,127.41,0.71326551]
[1767334684444,2.04639957,127.43,127.41,0.71326551]
[1767334687846,10.61548236,127.44,127.41,0.71326551]
[1767334688848,2.04639957,127.43,127.41,0.71326551]
[1767334689837,10.61548236,127.44,127.41,0.71326551]
[1767334690224,2.76864875,127.44,127.41,0.71326551]
[1767334693048,10.61548674,127.44,127.41,0.71326551]
[1767334696254,8.56908717,127.44,127.41,0.71326551]
[1767334704461,15.04042043,127.45,127.41,0.71326551]
[1767334705480,15.00231357,127.45,127.41,0.71326551]
[1767334705660,14.34,127.45,127.41,0.71326551]
[1767334705954,15.00231357,127.45,127.41,0.71326551]
[1767334706160,0.66231357,127.44,127.41,0.71326551]
[1767334720767,22.84854674,127.45,127.41,0.71326551]
[1767334720968,7.94464217,127.48,127.44,3.19707227]
[1767334721270,7.94464217,127.48,127.45,0.69346082]
[1767334721669,8.60695574,127.48,127.45,0.69346082]
[1767334722167,11.80402801,127.48,127.45,0.69346082]
[1767334725672,8.60695574,127.48,127.45,0.69346082]
[1767334725852,11.80402801,127.48,127.45,0.69346082]
[1767334726572,8.60695574,127.48,127.45,0.69346082]
[1767334726753,11.80402801,127.48,127.45,0.69346082]
[1767334731181,8.60695574,127.48,127.45,0.69346082]
[1767334731358,11.80402801,127.48,127.45,0.69346082]
[1767334731772,0.66231357,127.47,127.45,0.69346082]
[1767334731978,3.85938584,127.47,127.45,0.69346082]
[1767334737184,7.94464217,127.48,127.45,0.69346082]
[1767334737359,11.85239611,127.48,127.45,0.69346082]
[1767334740084,3.19707227,127.47,127.45,0.69346082]
[1767334740878,8.65532384,127.48,127.45,0.69346082]
[1767334741084,3.29707227,127.48,127.45,0.69346082]
[1767334741482,0.1,127.48,127.46,0.65729808]
[1767334743008,4.00775394,127.48,127.44,11.70116728]
[1767334743161,0.71068167,127.47,127.44,0.65729808]
[1767334743490,3.90775394,127.47,127.44,0.65729808]
[1767334744685,0.71068167,127.47,127.44,0.65729808]
[1767334744884,3.90775394,127.47,127.44,0.65729808]
[1767334748893,0.71068167,127.47,127.44,0.65729808]
[1767334749087,3.90775394,127.47,127.44,0.65729808]
[1767334752397,8.65513218,127.48,127.44,3.19707227]
[1767334752572,11.85220445,127.48,127.45,0.65729808]
[1767334754083,0.1,127.48,127.46,0.65729808]
[1767334772309,0.1,127.48,127.46,3.85437035]
[1767334773708,0.1,127.48,127.46,0.65729808]
[1767334777715,3.29707227,127.48,127.46,0.65729808]
[1767334780538,2.14494707,127.48,127.46,0.65729808]
[1767334781131,0.1,127.48,127.46,0.65729808]
[1767334786823,2.80379834,127.48,127.46,0.65729808]
[1767334787208,2.80379834,127.48,127.43,7.8469055]
[1767334787410,10.64822406,127.48,127.44,0.66486726]
[1767334787923,8.60327699,127.48,127.44,0.66486726]
[1767334788131,10.64822406,127.48,127.44,0.66486726]
[1767334788524,10.64822406,127.48,127.44,2.04494707]
[1767334788821,10.64822406,127.48,127.45,0.66486726]
[1767334789128,8.60327699,127.48,127.45,0.66486726]
[1767334789323,10.64822406,127.48,127.45,0.66486726]
[1767334792835,10.64822406,127.48,127.44,2.04494707]
[1767334793135,10.64822406,127.48,127.45,0.66486726]
[1767334798239,2.80379834,127.48,127.45,0.66486726]
[1767334801636,2.04494707,127.47,127.45,0.66486726]
[1767334801840,0.72432838,127.46,127.43,0.66893074]
[1767334802138,2.76927545,127.46,127.43,0.66893074]
[1767334803847,2.04494707,127.44,127.37,80.82632842]
[1767334804145,2.76927545,127.44,127.4,2.04494707]
[1767334804345,2.76927545,127.44,127.41,0.66893074]
[1767334809248,0.72432838,127.44,127.41,0.66893074]
[1767334809455,2.76927545,127.44,127.41,0.66893074]
[1767334809656,24.93514468,127.46,127.42,0.66893074]
[1767334810142,32.78474025,127.46,127.42,0.66893074]
[1767334810351,2.76927545,127.45,127.42,0.66893074]
[1767334815758,0.72432838,127.47,127.43,2.04494707]
[1767334815954,7.84920724,127.47,127.45,0.66893074]
[1767334816548,2.86927545,127.48,127.45,0.66893074]
[1767334816753,0.72432838,127.47,127.45,0.66893074]
[1767334821258,0.1,127.48,127.45,0.66893074]
[1767334821445,0.1,127.48,127.46,0.66893074]
[1767334844675,0.80433984,127.48,127.46,0.66893074]
[1767334844978,0.80433984,127.48,127.45,0.72495987]
[1767334845360,3.89923624,127.47,127.44,0.72495987]
[1767334846477,0.70433984,127.47,127.44,0.72495987]
[1767334846680,3.89923624,127.47,127.44,0.72495987]
[1767334849085,11.74426177,127.47,127.44,0.72495987]
[1767334852187,11.03992193,127.47,127.44,0.72495987]
[1767334852393,0.70433984,127.46,127.44,0.72495987]
[1767334853491,0.70433984,127.46,127.43,0.72495987]